[Event "Titled Tuesday Blitz November 15 Late 2022"]
[White "Hakobyan, Aram"]
[Black "Wieczorek, Oskar"]
[WhiteFideId "13306677"]
[BlackFideId "1133950"]
[WhiteElo "2563"]
[BlackElo "2404"]
[Result "1-0"]
[Round "05"]
[TimeControl "180+1"]
[Date "2022.11.15"]
[WhiteClock "0:00:07"]
[BlackClock "0:00:03"]

1. Nf3 {[%clk 0:03:00]}  Nf6 {[%clk 0:02:57]} 2. c4 {[%clk 0:03:00]}  c5 {[%clk 0:02:56]} 3. g3 {[%clk 0:02:58]}  Nc6 {[%clk 0:02:56]} 4. Bg2 {[%clk 0:02:59]}  d6 {[%clk 0:02:57]} 5. Nc3 {[%clk 0:02:57]}  g6 {[%clk 0:02:57]} 6. e3 {[%clk 0:02:55]}  Bg7 {[%clk 0:02:55]} 7. d4 {[%clk 0:02:55]}  cxd4 {[%clk 0:02:55]} 8. Nxd4 {[%clk 0:02:54]}  Bd7 {[%clk 0:02:55]} 9. O-O {[%clk 0:02:55]}  h5 {[%clk 0:02:55]} 10. h3 {[%clk 0:02:53]}  O-O {[%clk 0:02:52]} 11. b3 {[%clk 0:02:53]}  a6 {[%clk 0:02:40]} 12. Bb2 {[%clk 0:02:53]}  Qc8 {[%clk 0:02:37]} 13. Kh2 {[%clk 0:02:52]}  Nxd4 {[%clk 0:02:37]} 14. exd4 {[%clk 0:02:52]}  Rb8 {[%clk 0:02:37]} 15. Rc1 {[%clk 0:02:52]}  Bf5 {[%clk 0:02:34]} 16. Re1 {[%clk 0:02:52]}  Re8 {[%clk 0:02:34]} 17. a4 {[%clk 0:02:49]}  Qd8 {[%clk 0:02:33]} 18. Ba3 {[%clk 0:02:36]}  Bh6 {[%clk 0:02:32]} 19. Ra1 {[%clk 0:02:35]}  Bg7 {[%clk 0:02:18]} 20. Ra2 {[%clk 0:02:34]}  d5 {[%clk 0:02:08]} 21. Nxd5 {[%clk 0:02:19]}  Nxd5 {[%clk 0:02:07]} 22. Bxd5 {[%clk 0:02:20]}  e6 {[%clk 0:02:05]} 23. Be4 {[%clk 0:02:18]}  Qxd4 {[%clk 0:01:56]} 24. Rd2 {[%clk 0:02:19]}  Qb6 {[%clk 0:01:41]} 25. Bd6 {[%clk 0:02:14]}  Rbc8 {[%clk 0:01:30]} 26. c5 {[%clk 0:02:13]}  Qb4 {[%clk 0:01:29]} 27. c6 {[%clk 0:02:07]}  Qxe4 {[%clk 0:01:16]} 28. Rxe4 {[%clk 0:02:02]}  Bxe4 {[%clk 0:01:17]} 29. c7 {[%clk 0:02:03]}  e5 {[%clk 0:01:06]} 30. Qe2 {[%clk 0:01:40]}  Bc6 {[%clk 0:01:05]} 31. Qe3 {[%clk 0:01:35]}  Kh7 {[%clk 0:00:59]} 32. Qb6 {[%clk 0:01:32]}  Bh6 {[%clk 0:00:52]} 33. Rd1 {[%clk 0:01:28]}  e4 {[%clk 0:00:52]} 34. Bf4 {[%clk 0:01:27]}  Bxf4 {[%clk 0:00:49]} 35. gxf4 {[%clk 0:01:28]}  Re7 {[%clk 0:00:50]} 36. Rd8 {[%clk 0:01:25]}  Rexc7 {[%clk 0:00:49]} 37. Rxc8 {[%clk 0:01:15]}  Rxc8 {[%clk 0:00:49]} 38. Qd4 {[%clk 0:01:14]}  Re8 {[%clk 0:00:41]} 39. f5 {[%clk 0:01:15]}  gxf5 {[%clk 0:00:26]} 40. Qf6 {[%clk 0:01:15]}  Kg8 {[%clk 0:00:22]} 41. Qxf5 {[%clk 0:01:14]}  Re6 {[%clk 0:00:22]} 42. Qxh5 {[%clk 0:01:14]}  Rg6 {[%clk 0:00:22]} 43. Qe2 {[%clk 0:01:06]}  Rd6 {[%clk 0:00:18]} 44. h4 {[%clk 0:01:05]}  Rd3 {[%clk 0:00:18]} 45. Qg4+ {[%clk 0:01:03]}  Kf8 {[%clk 0:00:18]} 46. h5 {[%clk 0:01:03]}  Rd6 {[%clk 0:00:18]} 47. Qf4 {[%clk 0:01:02]}  Re6 {[%clk 0:00:18]} 48. h6 {[%clk 0:01:02]}  Kg8 {[%clk 0:00:18]} 49. h7+ {[%clk 0:01:01]}  Kg7 {[%clk 0:00:17]} 50. Kh3 {[%clk 0:00:31]}  Rg6 {[%clk 0:00:11]} 51. Kh4 {[%clk 0:00:28]}  Kxh7 {[%clk 0:00:09]} 52. Qxf7+ {[%clk 0:00:28]}  Rg7 {[%clk 0:00:10]} 53. Qf5+ {[%clk 0:00:26]}  Kg8 {[%clk 0:00:10]} 54. Qe6+ {[%clk 0:00:24]}  Kh8 {[%clk 0:00:10]} 55. Kh5 {[%clk 0:00:21]}  Rh7+ {[%clk 0:00:09]} 56. Kg6 {[%clk 0:00:21]}  Rg7+ {[%clk 0:00:09]} 57. Kf6 {[%clk 0:00:21]}  Kh7 {[%clk 0:00:09]} 58. Qh3+ {[%clk 0:00:20]}  Kg8 {[%clk 0:00:09]} 59. Qc8+ {[%clk 0:00:21]}  Kh7 {[%clk 0:00:10]} 60. Qf5+ {[%clk 0:00:13]}  Kg8 {[%clk 0:00:10]} 61. Qh5 {[%clk 0:00:09]}  Rg2 {[%clk 0:00:09]} 62. Qh4 {[%clk 0:00:07]}  Rg7 {[%clk 0:00:09]} 63. Ke5 {[%clk 0:00:07]}  Rf7 {[%clk 0:00:07]} 64. Kd4 {[%clk 0:00:07]}  Kf8 {[%clk 0:00:07]} 65. Kc5 {[%clk 0:00:07]}  Ke8 {[%clk 0:00:04]} 66. Kb6 {[%clk 0:00:07]}  Rf3 {[%clk 0:00:04]} 67. Qh8+ {[%clk 0:00:07]}  Kd7 {[%clk 0:00:04]} 68. Qd4+ {[%clk 0:00:08]}  Ke6 {[%clk 0:00:04]} 69. b4 {[%clk 0:00:08]}  Rd3 {[%clk 0:00:04]} 70. Qc4+ {[%clk 0:00:08]}  Rd5 {[%clk 0:00:05]} 71. Qxe4+ {[%clk 0:00:04]}  Kd6 {[%clk 0:00:05]} 72. Qf4+ {[%clk 0:00:04]}  Kd7 {[%clk 0:00:05]} 73. Qf7+ {[%clk 0:00:05]}  Kd6 {[%clk 0:00:06]} 74. Qf8+ {[%clk 0:00:05]}  Kd7 {[%clk 0:00:06]} 75. a5 {[%clk 0:00:03]}  Rb5+ {[%clk 0:00:06]} 76. Ka7 {[%clk 0:00:04]}  Rd5 {[%clk 0:00:05]} 77. f4 {[%clk 0:00:05]}  Ke6 {[%clk 0:00:05]} 78. Qh6+ {[%clk 0:00:03]}  Kf7 {[%clk 0:00:04]} 79. Qh3 {[%clk 0:00:03]}  Rb5 {[%clk 0:00:02]} 80. Qg3 {[%clk 0:00:02]}  Bd7 {[%clk 0:00:02]} 81. Qc3 {[%clk 0:00:02]}  Bf5 {[%clk 0:00:02]} 82. Qd4 {[%clk 0:00:02]}  Kg6 {[%clk 0:00:02]} 83. Qd6+ {[%clk 0:00:03]}  Kf7 {[%clk 0:00:03]} 84. Qd8 {[%clk 0:00:03]}  Be6 {[%clk 0:00:03]} 85. Qh4 {[%clk 0:00:02]}  Bf5 {[%clk 0:00:03]} 86. Qg5 {[%clk 0:00:03]}  Ke6 {[%clk 0:00:04]} 87. Qg7 {[%clk 0:00:03]}  Kd6 {[%clk 0:00:02]} 88. Qd4+ {[%clk 0:00:04]}  Ke6 {[%clk 0:00:02]} 89. Qg7 {[%clk 0:00:04]}  Kd6 {[%clk 0:00:02]} 90. Qf6+ {[%clk 0:00:05]}  Kd7 {[%clk 0:00:02]} 91. Qf7+ {[%clk 0:00:05]}  Kd6 {[%clk 0:00:03]} 92. Kb8 {[%clk 0:00:05]}  Be6 {[%clk 0:00:03]} 93. Qc7+ {[%clk 0:00:06]}  Kd5 {[%clk 0:00:03]} 94. Qe5+ {[%clk 0:00:06]}  Kc6 {[%clk 0:00:03]} 95. Qxe6# {[%clk 0:00:07]} 1-0


[Site "https://www.chess.com"]

[Event "Titled Tuesday Blitz November 15 Late 2022"]
[White "Hambleton, Aman"]
[Black "Guzman, Christopher"]
[WhiteFideId "2606577"]
[BlackFideId "6405096"]
[WhiteElo "2538"]
[BlackElo "2272"]
[Result "1-0"]
[Round "05"]
[TimeControl "180+1"]
[Date "2022.11.16"]
[WhiteClock "0:00:08"]
[BlackClock "0:00:56"]

1. d4 {[%clk 0:03:00]}  Nf6 {[%clk 0:02:58]} 2. c4 {[%clk 0:02:59]}  e6 {[%clk 0:02:57]} 3. Nc3 {[%clk 0:02:57]}  b6 {[%clk 0:02:57]} 4. e4 {[%clk 0:02:43]}  Bb4 {[%clk 0:02:51]} 5. e5 {[%clk 0:02:41]}  Ng8 {[%clk 0:02:49]} 6. Qg4 {[%clk 0:02:29]}  Kf8 {[%clk 0:02:47]} 7. Nf3 {[%clk 0:02:09]}  Bb7 {[%clk 0:02:47]} 8. Be3 {[%clk 0:01:43]}  h5 {[%clk 0:02:45]} 9. Qf4 {[%clk 0:01:39]}  Nc6 {[%clk 0:02:38]} 10. Ng5 {[%clk 0:01:27]}  Qe7 {[%clk 0:02:36]} 11. Bd3 {[%clk 0:01:23]}  Nh6 {[%clk 0:02:31]} 12. O-O {[%clk 0:01:06]}  Bxc3 {[%clk 0:02:29]} 13. bxc3 {[%clk 0:01:06]}  Ng4 {[%clk 0:02:28]} 14. h3 {[%clk 0:00:50]}  Nh6 {[%clk 0:02:25]} 15. a4 {[%clk 0:00:33]}  d6 {[%clk 0:02:23]} 16. exd6 {[%clk 0:00:16]}  Qxd6 {[%clk 0:02:15]} 17. Qh4 {[%clk 0:00:05]}  Qe7 {[%clk 0:02:04]} 18. Qxh5 {[%clk 0:00:04]}  f6 {[%clk 0:01:55]} 19. Ne4 {[%clk 0:00:02]}  Nf7 {[%clk 0:01:54]} 20. Qe2 {[%clk 0:00:01]}  Rd8 {[%clk 0:01:53]} 21. d5 {[%clk 0:00:02]}  Nce5 {[%clk 0:01:51]} 22. Rfe1 {[%clk 0:00:01]}  Nxd3 {[%clk 0:01:50]} 23. Qxd3 {[%clk 0:00:02]}  exd5 {[%clk 0:01:45]} 24. cxd5 {[%clk 0:00:03]}  Rxd5 {[%clk 0:01:45]} 25. Qc2 {[%clk 0:00:03]}  Re5 {[%clk 0:01:43]} 26. Ng3 {[%clk 0:00:03]}  Kg8 {[%clk 0:01:40]} 27. a5 {[%clk 0:00:03]}  Nd6 {[%clk 0:01:33]} 28. axb6 {[%clk 0:00:03]}  cxb6 {[%clk 0:01:33]} 29. Rxa7 {[%clk 0:00:02]}  Kf7 {[%clk 0:01:32]} 30. Qa2+ {[%clk 0:00:03]}  Qe6 {[%clk 0:01:25]} 31. Qxe6+ {[%clk 0:00:03]}  Rxe6 {[%clk 0:01:26]} 32. Rb1 {[%clk 0:00:04]}  b5 {[%clk 0:01:24]} 33. Bc5 {[%clk 0:00:03]}  Rb8 {[%clk 0:01:17]} 34. Bxd6 {[%clk 0:00:04]}  Rxd6 {[%clk 0:01:18]} 35. Rxb5 {[%clk 0:00:04]}  Rd7 {[%clk 0:01:18]} 36. Kh2 {[%clk 0:00:04]}  Ke7 {[%clk 0:01:15]} 37. Rb4 {[%clk 0:00:05]}  Kd8 {[%clk 0:01:15]} 38. Nf5 {[%clk 0:00:05]}  Kc8 {[%clk 0:01:15]} 39. f3 {[%clk 0:00:05]}  g6 {[%clk 0:01:10]} 40. Nd4 {[%clk 0:00:05]}  Rd6 {[%clk 0:01:08]} 41. Nb5 {[%clk 0:00:05]}  Rc6 {[%clk 0:01:07]} 42. Rd4 {[%clk 0:00:05]}  g5 {[%clk 0:01:00]} 43. Nd6+ {[%clk 0:00:05]}  Kc7 {[%clk 0:01:01]} 44. Rxb7+ {[%clk 0:00:05]}  Rxb7 {[%clk 0:01:01]} 45. Nxb7 {[%clk 0:00:06]}  Kxb7 {[%clk 0:01:01]} 46. c4 {[%clk 0:00:06]}  Kc7 {[%clk 0:01:02]} 47. f4 {[%clk 0:00:06]}  gxf4 {[%clk 0:01:00]} 48. Rxf4 {[%clk 0:00:07]}  Kd7 {[%clk 0:01:00]} 49. Re4 {[%clk 0:00:07]}  Rc5 {[%clk 0:00:59]} 50. g4 {[%clk 0:00:07]}  f5 {[%clk 0:00:59]} 51. gxf5 {[%clk 0:00:07]}  Rxf5 {[%clk 0:01:00]} 52. Kg3 {[%clk 0:00:08]}  Rg5+ {[%clk 0:01:00]} 53. Kf3 {[%clk 0:00:08]}  Rh5 {[%clk 0:01:00]} 54. h4 {[%clk 0:00:08]}  Kd6 {[%clk 0:00:59]} 55. Kg4 {[%clk 0:00:08]}  Rh8 {[%clk 0:01:00]} 56. h5 {[%clk 0:00:08]}  Rg8+ {[%clk 0:01:00]} 57. Kh4 {[%clk 0:00:09]}  Rg1 {[%clk 0:01:00]} 58. h6 {[%clk 0:00:09]}  Rh1+ {[%clk 0:01:00]} 59. Kg5 {[%clk 0:00:10]}  Rg1+ {[%clk 0:00:57]} 60. Kh5 {[%clk 0:00:10]}  Kc5 {[%clk 0:00:55]} 61. h7 {[%clk 0:00:07]}  Rh1+ {[%clk 0:00:56]} 62. Rh4 {[%clk 0:00:08]} 1-0


[Site "https://www.chess.com"]

[Event "Titled Tuesday Blitz November 15 Late 2022"]
[White "Harshal, Shahi"]
[Black "Zhou, Qiyu"]
[WhiteFideId "5048257"]
[BlackFideId "505161"]
[WhiteElo "2054"]
[BlackElo "2101"]
[Result "1-0"]
[Round "05"]
[TimeControl "180+1"]
[Date "2022.11.16"]
[WhiteClock "0:00:10"]
[BlackClock "0:01:10"]

1. e4 {[%clk 0:03:00]}  g5 {[%clk 0:02:58]} 2. d4 {[%clk 0:02:57]}  h6 {[%clk 0:02:53]} 3. Nc3 {[%clk 0:02:39]}  e6 {[%clk 0:02:51]} 4. f4 {[%clk 0:02:38]}  Be7 {[%clk 0:02:51]} 5. Nf3 {[%clk 0:02:33]}  d5 {[%clk 0:02:48]} 6. exd5 {[%clk 0:02:24]}  exd5 {[%clk 0:02:49]} 7. fxg5 {[%clk 0:02:25]}  hxg5 {[%clk 0:02:50]} 8. Bd3 {[%clk 0:02:20]}  Be6 {[%clk 0:02:45]} 9. Qe2 {[%clk 0:02:13]}  Nc6 {[%clk 0:02:41]} 10. Bb5 {[%clk 0:02:11]}  a6 {[%clk 0:02:26]} 11. Bxc6+ {[%clk 0:02:08]}  bxc6 {[%clk 0:02:27]} 12. Ne5 {[%clk 0:02:07]}  Qd6 {[%clk 0:02:26]} 13. Be3 {[%clk 0:01:30]}  Nf6 {[%clk 0:02:17]} 14. O-O-O {[%clk 0:01:24]}  Nd7 {[%clk 0:02:14]} 15. Qd2 {[%clk 0:01:09]}  Rg8 {[%clk 0:02:01]} 16. Rhf1 {[%clk 0:01:05]}  Nxe5 {[%clk 0:01:58]} 17. dxe5 {[%clk 0:01:01]}  Qxe5 {[%clk 0:01:58]} 18. Bd4 {[%clk 0:00:59]}  Qxh2 {[%clk 0:01:54]} 19. Rde1 {[%clk 0:00:55]}  Qd6 {[%clk 0:01:42]} 20. Na4 {[%clk 0:00:49]}  Qb4 {[%clk 0:01:34]} 21. Qxb4 {[%clk 0:00:27]}  Bxb4 {[%clk 0:01:35]} 22. c3 {[%clk 0:00:28]}  Bd6 {[%clk 0:01:35]} 23. Nc5 {[%clk 0:00:25]}  Bxc5 {[%clk 0:01:30]} 24. Bxc5 {[%clk 0:00:26]}  Kd7 {[%clk 0:01:30]} 25. Re3 {[%clk 0:00:15]}  Rae8 {[%clk 0:01:29]} 26. Kd2 {[%clk 0:00:09]}  f5 {[%clk 0:01:29]} 27. Rfe1 {[%clk 0:00:07]}  f4 {[%clk 0:01:28]} 28. Re5 {[%clk 0:00:07]}  Bf7 {[%clk 0:01:28]} 29. Re7+ {[%clk 0:00:06]}  Kc8 {[%clk 0:01:27]} 30. Rxf7 {[%clk 0:00:05]}  Rxe1 {[%clk 0:01:26]} 31. Kxe1 {[%clk 0:00:06]}  Re8+ {[%clk 0:01:27]} 32. Kd2 {[%clk 0:00:07]}  Re4 {[%clk 0:01:22]} 33. Rf8+ {[%clk 0:00:05]}  Kb7 {[%clk 0:01:20]} 34. Rg8 {[%clk 0:00:06]}  Re5 {[%clk 0:01:20]} 35. Bd4 {[%clk 0:00:06]}  Rf5 {[%clk 0:01:21]} 36. Ke2 {[%clk 0:00:06]}  c5 {[%clk 0:01:18]} 37. Bxc5 {[%clk 0:00:05]}  Kc6 {[%clk 0:01:19]} 38. Bd4 {[%clk 0:00:06]}  Kb5 {[%clk 0:01:20]} 39. Kf3 {[%clk 0:00:05]}  c5 {[%clk 0:01:20]} 40. Bf2 {[%clk 0:00:05]}  Re5 {[%clk 0:01:19]} 41. Rb8+ {[%clk 0:00:05]}  Kc4 {[%clk 0:01:19]} 42. Rc8 {[%clk 0:00:05]}  Kd3 {[%clk 0:01:14]} 43. Rxc5 {[%clk 0:00:04]}  Kc2 {[%clk 0:01:07]} 44. Bd4 {[%clk 0:00:04]}  Re1 {[%clk 0:01:01]} 45. Rxd5 {[%clk 0:00:03]}  Rf1+ {[%clk 0:01:02]} 46. Kg4 {[%clk 0:00:03]}  Kxb2 {[%clk 0:01:02]} 47. Kxg5 {[%clk 0:00:03]}  Kxa2 {[%clk 0:01:01]} 48. c4 {[%clk 0:00:04]}  Kb3 {[%clk 0:01:01]} 49. c5 {[%clk 0:00:04]}  Kc4 {[%clk 0:01:02]} 50. Rd6 {[%clk 0:00:04]}  Rc1 {[%clk 0:01:00]} 51. c6 {[%clk 0:00:04]}  Kb5 {[%clk 0:01:00]} 52. c7 {[%clk 0:00:02]}  Rxc7 {[%clk 0:01:00]} 53. Rb6+ {[%clk 0:00:02]}  Ka5 {[%clk 0:01:00]} 54. Rf6 {[%clk 0:00:01]}  Rc4 {[%clk 0:01:01]} 55. Bb6+ {[%clk 0:00:01]}  Kb5 {[%clk 0:01:01]} 56. Bf2 {[%clk 0:00:01]}  Rc2 {[%clk 0:01:01]} 57. Rf5+ {[%clk 0:00:01]}  Rc5 {[%clk 0:01:02]} 58. Rxc5+ {[%clk 0:00:01]}  Kb4 {[%clk 0:01:02]} 59. Kxf4 {[%clk 0:00:02]}  a5 {[%clk 0:01:03]} 60. Rxa5 {[%clk 0:00:02]}  Kxa5 {[%clk 0:01:03]} 61. g4 {[%clk 0:00:02]}  Kb5 {[%clk 0:01:04]} 62. g5 {[%clk 0:00:03]}  Kc6 {[%clk 0:01:05]} 63. Kf5 {[%clk 0:00:04]}  Kd7 {[%clk 0:01:06]} 64. Kf6 {[%clk 0:00:05]}  Ke8 {[%clk 0:01:06]} 65. g6 {[%clk 0:00:06]}  Kf8 {[%clk 0:01:07]} 66. Bc5+ {[%clk 0:00:06]}  Kg8 {[%clk 0:01:08]} 67. g7 {[%clk 0:00:07]}  Kh7 {[%clk 0:01:08]} 68. Kf7 {[%clk 0:00:08]}  Kh6 {[%clk 0:01:09]} 69. g8=Q {[%clk 0:00:08]}  Kh5 {[%clk 0:01:10]} 70. Qg3 {[%clk 0:00:09]}  Kh6 {[%clk 0:01:10]} 71. Qh4# {[%clk 0:00:10]} 1-0


[Site "https://www.chess.com"]

[Event "Titled Tuesday Blitz November 15 Late 2022"]
[White "He, Samuel"]
[Black "Sarkar, Justin"]
[WhiteFideId "2087235"]
[BlackFideId "2010011"]
[WhiteElo "2603"]
[BlackElo "2239"]
[Result "1-0"]
[Round "05"]
[TimeControl "180+1"]
[Date "2022.11.16"]
[WhiteClock "0:00:34"]
[BlackClock "0:00:01"]

1. Nf3 {[%clk 0:03:00]}  d5 {[%clk 0:02:53]} 2. e3 {[%clk 0:02:59]}  Bg4 {[%clk 0:02:33]} 3. c4 {[%clk 0:02:58]}  Nf6 {[%clk 0:02:32]} 4. cxd5 {[%clk 0:02:56]}  Nxd5 {[%clk 0:02:27]} 5. d4 {[%clk 0:02:53]}  e6 {[%clk 0:02:07]} 6. Nc3 {[%clk 0:02:51]}  Be7 {[%clk 0:01:11]} 7. h3 {[%clk 0:02:50]}  Bh5 {[%clk 0:01:08]} 8. e4 {[%clk 0:02:41]}  Nxc3 {[%clk 0:01:01]} 9. bxc3 {[%clk 0:02:41]}  O-O {[%clk 0:01:01]} 10. Rb1 {[%clk 0:02:31]}  b6 {[%clk 0:00:29]} 11. Bd3 {[%clk 0:02:25]}  c5 {[%clk 0:00:27]} 12. Be3 {[%clk 0:02:10]}  Nc6 {[%clk 0:00:22]} 13. Bb5 {[%clk 0:01:41]}  Rc8 {[%clk 0:00:19]} 14. Qa4 {[%clk 0:01:37]}  Bxf3 {[%clk 0:00:16]} 15. gxf3 {[%clk 0:01:37]}  Na5 {[%clk 0:00:09]} 16. O-O {[%clk 0:01:25]}  cxd4 {[%clk 0:00:09]} 17. cxd4 {[%clk 0:01:25]}  Bd6 {[%clk 0:00:06]} 18. e5 {[%clk 0:01:21]}  Bc7 {[%clk 0:00:05]} 19. f4 {[%clk 0:01:12]}  Qh4 {[%clk 0:00:04]} 20. Kh2 {[%clk 0:01:09]}  Bd8 {[%clk 0:00:04]} 21. Rfc1 {[%clk 0:01:02]}  Be7 {[%clk 0:00:04]} 22. Qd1 {[%clk 0:00:50]}  g6 {[%clk 0:00:03]} 23. Qg4 {[%clk 0:00:47]}  h5 {[%clk 0:00:03]} 24. Qf3 {[%clk 0:00:38]}  Rfd8 {[%clk 0:00:02]} 25. Ba6 {[%clk 0:00:37]}  Rxc1 {[%clk 0:00:02]} 26. Rxc1 {[%clk 0:00:37]}  g5 {[%clk 0:00:01]} 27. fxg5 {[%clk 0:00:34]} 1-0


[Site "https://www.chess.com"]

[Event "Titled Tuesday Blitz November 15 Late 2022"]
[White "Jimenez Almeida, Luis David"]
[Black "Sargsyan, Anna M."]
[WhiteFideId "22242244"]
[BlackFideId "13308130"]
[WhiteElo "2158"]
[BlackElo "2284"]
[Result "0-1"]
[Round "05"]
[TimeControl "180+1"]
[Date "2022.11.16"]
[WhiteClock "0:00:04"]
[BlackClock "0:00:05"]

1. e4 {[%clk 0:02:57]}  c6 {[%clk 0:02:57]} 2. Nc3 {[%clk 0:02:55]}  d5 {[%clk 0:02:58]} 3. Qf3 {[%clk 0:02:54]}  Nf6 {[%clk 0:02:56]} 4. e5 {[%clk 0:02:51]}  Nfd7 {[%clk 0:02:56]} 5. d4 {[%clk 0:02:51]}  e6 {[%clk 0:02:56]} 6. Nh3 {[%clk 0:02:49]}  h6 {[%clk 0:02:56]} 7. Bf4 {[%clk 0:02:39]}  c5 {[%clk 0:02:56]} 8. dxc5 {[%clk 0:02:33]}  Nc6 {[%clk 0:02:55]} 9. O-O-O {[%clk 0:02:23]}  Bxc5 {[%clk 0:02:48]} 10. Qg3 {[%clk 0:02:21]}  g5 {[%clk 0:02:48]} 11. Bd2 {[%clk 0:02:15]}  Ndxe5 {[%clk 0:02:38]} 12. f4 {[%clk 0:02:15]}  gxf4 {[%clk 0:02:12]} 13. Bxf4 {[%clk 0:02:02]}  Ng6 {[%clk 0:02:08]} 14. Bc7 {[%clk 0:01:55]}  Qh4 {[%clk 0:02:07]} 15. Qd3 {[%clk 0:01:33]}  Bd7 {[%clk 0:01:55]} 16. g3 {[%clk 0:01:26]}  Qh5 {[%clk 0:01:26]} 17. Nf4 {[%clk 0:01:13]}  Nxf4 {[%clk 0:01:22]} 18. Bxf4 {[%clk 0:01:11]}  Qg6 {[%clk 0:01:10]} 19. Qb5 {[%clk 0:01:08]}  Nd4 {[%clk 0:00:58]} 20. Qd3 {[%clk 0:00:55]}  Qxd3 {[%clk 0:00:49]} 21. Bxd3 {[%clk 0:00:56]}  O-O-O {[%clk 0:00:46]} 22. Rhf1 {[%clk 0:00:50]}  Nc6 {[%clk 0:00:39]} 23. Rde1 {[%clk 0:00:49]}  f6 {[%clk 0:00:31]} 24. a3 {[%clk 0:00:40]}  a6 {[%clk 0:00:28]} 25. Bd2 {[%clk 0:00:38]}  Bd4 {[%clk 0:00:28]} 26. Ne2 {[%clk 0:00:37]}  Be5 {[%clk 0:00:28]} 27. Nf4 {[%clk 0:00:37]}  Rhg8 {[%clk 0:00:15]} 28. Nh5 {[%clk 0:00:35]}  Rdf8 {[%clk 0:00:05]} 29. Bxh6 {[%clk 0:00:29]}  Rf7 {[%clk 0:00:05]} 30. Bd2 {[%clk 0:00:25]}  Be8 {[%clk 0:00:04]} 31. c4 {[%clk 0:00:20]}  d4 {[%clk 0:00:03]} 32. c5 {[%clk 0:00:19]}  Kd7 {[%clk 0:00:03]} 33. b4 {[%clk 0:00:18]}  Ke7 {[%clk 0:00:03]} 34. Nf4 {[%clk 0:00:17]}  Bd7 {[%clk 0:00:03]} 35. Bc4 {[%clk 0:00:17]}  Rgg7 {[%clk 0:00:02]} 36. Nd3 {[%clk 0:00:16]}  Bc7 {[%clk 0:00:01]} 37. Bf4 {[%clk 0:00:16]}  e5 {[%clk 0:00:02]} 38. Bxf7 {[%clk 0:00:16]}  Rxf7 {[%clk 0:00:02]} 39. Bd2 {[%clk 0:00:16]}  Be6 {[%clk 0:00:03]} 40. Kb2 {[%clk 0:00:15]}  Rh7 {[%clk 0:00:03]} 41. h4 {[%clk 0:00:14]}  Bd8 {[%clk 0:00:04]} 42. Rf2 {[%clk 0:00:13]}  Kd7 {[%clk 0:00:04]} 43. Ref1 {[%clk 0:00:14]}  Bd5 {[%clk 0:00:03]} 44. Rxf6 {[%clk 0:00:12]}  Bxf6 {[%clk 0:00:03]} 45. Rxf6 {[%clk 0:00:13]}  Be4 {[%clk 0:00:03]} 46. Nf2 {[%clk 0:00:11]}  Bd5 {[%clk 0:00:04]} 47. Rf5 {[%clk 0:00:09]}  Ke6 {[%clk 0:00:03]} 48. Rg5 {[%clk 0:00:09]}  Ne7 {[%clk 0:00:04]} 49. Nd3 {[%clk 0:00:09]}  Nc6 {[%clk 0:00:04]} 50. a4 {[%clk 0:00:08]}  Bc4 {[%clk 0:00:04]} 51. Nf2 {[%clk 0:00:05]}  Ne7 {[%clk 0:00:04]} 52. Ng4 {[%clk 0:00:03]}  Nc6 {[%clk 0:00:04]} 53. Rg6+ {[%clk 0:00:03]}  Kf5 {[%clk 0:00:04]} 54. Rd6 {[%clk 0:00:04]}  Kxg4 {[%clk 0:00:04]} 55. b5 {[%clk 0:00:04]}  axb5 {[%clk 0:00:03]} 56. axb5 {[%clk 0:00:05]}  Bxb5 {[%clk 0:00:03]} 57. Rg6+ {[%clk 0:00:05]}  Kf3 {[%clk 0:00:03]} 58. Bg5 {[%clk 0:00:03]}  Bd3 {[%clk 0:00:03]} 59. Rf6+ {[%clk 0:00:02]}  Ke2 {[%clk 0:00:03]} 60. g4 {[%clk 0:00:02]}  e4 {[%clk 0:00:04]} 61. h5 {[%clk 0:00:03]}  e3 {[%clk 0:00:04]} 62. h6 {[%clk 0:00:03]}  Ne5 {[%clk 0:00:05]} 63. Re6 {[%clk 0:00:04]}  Nxg4 {[%clk 0:00:05]} 64. Bf4 {[%clk 0:00:04]}  Nxh6 {[%clk 0:00:04]} 65. Bxh6 {[%clk 0:00:04]}  Rf7 {[%clk 0:00:04]} 66. Bg5 {[%clk 0:00:03]}  Kd1 {[%clk 0:00:04]} 67. Bf6 {[%clk 0:00:04]}  Rxf6 {[%clk 0:00:04]} 68. Rxf6 {[%clk 0:00:04]}  e2 {[%clk 0:00:05]} 69. Re6 {[%clk 0:00:04]}  e1=Q {[%clk 0:00:05]} 0-1


[Site "https://www.chess.com"]

[Event "Titled Tuesday Blitz November 15 Late 2022"]
[White "Kirillov, Dmitry"]
[Black "Bordi, Kevin"]
[WhiteFideId "34180572"]
[BlackFideId "621862"]
[WhiteElo "2095"]
[BlackElo "2790"]
[Result "0-1"]
[Round "05"]
[TimeControl "180+1"]
[Date "2022.11.16"]
[WhiteClock "0:00:04"]
[BlackClock "0:00:26"]

1. e4 {[%clk 0:02:58]}  d5 {[%clk 0:03:00]} 2. exd5 {[%clk 0:02:59]}  Qxd5 {[%clk 0:03:01]} 3. Nc3 {[%clk 0:02:54]}  Qa5 {[%clk 0:03:00]} 4. b4 {[%clk 0:02:36]}  Qxb4 {[%clk 0:03:00]} 5. Rb1 {[%clk 0:02:36]}  Qd6 {[%clk 0:03:00]} 6. d4 {[%clk 0:02:33]}  Nf6 {[%clk 0:03:00]} 7. Nf3 {[%clk 0:02:32]}  c6 {[%clk 0:03:00]} 8. Bc4 {[%clk 0:02:27]}  b5 {[%clk 0:03:00]} 9. Bd3 {[%clk 0:02:21]}  Bg4 {[%clk 0:02:59]} 10. O-O {[%clk 0:02:18]}  e6 {[%clk 0:02:59]} 11. Be3 {[%clk 0:02:12]}  Be7 {[%clk 0:02:59]} 12. a4 {[%clk 0:02:09]}  b4 {[%clk 0:02:58]} 13. Ne4 {[%clk 0:01:58]}  Nxe4 {[%clk 0:02:58]} 14. Bxe4 {[%clk 0:01:59]}  Nd7 {[%clk 0:02:57]} 15. h3 {[%clk 0:01:48]}  Bh5 {[%clk 0:02:56]} 16. Re1 {[%clk 0:01:38]}  Nf6 {[%clk 0:02:56]} 17. Bf4 {[%clk 0:01:27]}  Qd7 {[%clk 0:02:46]} 18. Qd3 {[%clk 0:01:27]}  Nxe4 {[%clk 0:02:42]} 19. Qxe4 {[%clk 0:01:27]}  Bg6 {[%clk 0:02:41]} 20. Qe2 {[%clk 0:01:26]}  O-O {[%clk 0:02:39]} 21. Red1 {[%clk 0:01:21]}  Qd5 {[%clk 0:02:37]} 22. Ne5 {[%clk 0:01:16]}  a5 {[%clk 0:02:36]} 23. Rbc1 {[%clk 0:01:12]}  Rac8 {[%clk 0:02:26]} 24. c4 {[%clk 0:01:01]}  bxc3 {[%clk 0:02:19]} 25. Rxc3 {[%clk 0:01:01]}  Bb4 {[%clk 0:02:19]} 26. Rc4 {[%clk 0:00:48]}  Rfd8 {[%clk 0:02:09]} 27. Rdc1 {[%clk 0:00:48]}  c5 {[%clk 0:01:40]} 28. dxc5 {[%clk 0:00:41]}  Rxc5 {[%clk 0:01:40]} 29. Rxc5 {[%clk 0:00:42]}  Bxc5 {[%clk 0:01:40]} 30. Qb5 {[%clk 0:00:41]}  Bb4 {[%clk 0:01:26]} 31. Nc6 {[%clk 0:00:34]}  Rf8 {[%clk 0:01:08]} 32. Nxb4 {[%clk 0:00:16]}  axb4 {[%clk 0:01:08]} 33. Qxb4 {[%clk 0:00:12]}  h6 {[%clk 0:01:08]} 34. Bd6 {[%clk 0:00:07]}  Ra8 {[%clk 0:01:06]} 35. Bg3 {[%clk 0:00:06]}  Qa2 {[%clk 0:01:00]} 36. Rc4 {[%clk 0:00:04]}  Qa1+ {[%clk 0:00:52]} 37. Kh2 {[%clk 0:00:04]}  Rd8 {[%clk 0:00:52]} 38. Bc7 {[%clk 0:00:04]}  Rd1 {[%clk 0:00:49]} 39. Kg3 {[%clk 0:00:02]}  Rd3+ {[%clk 0:00:45]} 40. f3 {[%clk 0:00:03]}  Qa2 {[%clk 0:00:30]} 41. a5 {[%clk 0:00:03]}  Rd2 {[%clk 0:00:30]} 42. Rd4 {[%clk 0:00:03]}  Rxg2+ {[%clk 0:00:30]} 43. Kh4 {[%clk 0:00:04]}  Qf2+ {[%clk 0:00:26]} 0-1


[Site "https://www.chess.com"]